[Event "ONJK-A 2019"]
[Site "Borne"]
[Date "2019.08.09"]
[Round "7.10"]
[White "Akulova, Alicia"]
[Black "Vitharana, Annelies"]
[Result "0-1"]
[ECO "B11"]
[WhiteElo "1702"]
[BlackElo "1768"]
[Annotator "NA RC"]
[PlyCount "132"]
[EventDate "2019.08.05"]
[EventType "swiss"]
[EventCountry "NED"]
[SourceTitle "playchess.com"]
[Source "ChessBase"]
[SourceQuality "1"]
[TimeControl "5400+30"]

1. e4 {[%emt 0:00:00]} c6 {[%emt 0:00:00]} 2. Nc3 {[%emt 0:00:06]} d5 {[%emt 0:00:24]} 3. Nf3 {[%emt 0:00:39]} dxe4 {[%emt 0:00:51]} 4. Nxe4 {[%emt 0:00:22]} Bf5 {[%emt 0:00:49]} 5. Ng3 {[%emt 0:01:23]} Bg6 {[%emt 0:00:22]} 6. h4 {[%emt 0:01:43]} h6 {[%emt 0:00:28]} 7. Ne5 {[%emt 0:01:45]} Qd6 {[%emt 0:08:19]} 8. d4 {[%emt 0:06:33]} Nd7 {[%emt 0:03:21]} 9. Nxg6 {[%emt 0:06:23]} Qxg6 {[%emt 0:01:21]} 10. Bd3 {[%emt 0:01:29]} Qe6+ {[%emt 0:06:39]} 11. Qe2 {[%emt 0:07:07]} Qxe2+ {[%emt 0:11:25]} 12. Nxe2 {[%emt 0:04:07]} Ngf6 {[%emt 0:01:08]} 13. c3 {[%emt 0:05:59]} e6 {[%emt 0:02:24]} 14. Bf4 {[%emt 0:04:36]} Be7 {[%emt 0:02:40]} 15. O-O-O {[%emt 0:04:53]} Nd5 {[%emt 0:04:45]} 16. Bd2 {[%emt 0:01:39]} N7f6 {[%emt 0:02:08]} 17. h5 {[%emt 0:12:20]} Rd8 {[%emt 0:05:55]} 18. f3 {[%emt 0:13:23]} b5 {[%emt 0:09:18]} 19. Ng3 {[%emt 0:05:29]} Bd6 {[%emt 0:06:09]} 20. Ne4 {[%emt 0:02:31]} Bc7 {[%emt 0:02:46]} 21. Rh4 {[%emt 0:05:18]} Kd7 {[%emt 0:05:29]} 22. Nc5+ {[%emt 0:03:18]} Ke7 {[%emt 0:04:41]} 23. Ne4 {[%emt 0:01:58]} Kd7 {[%emt 0:00:55]} 24. Nxf6+ {[%emt 0:01:04]} Nxf6 {[%emt 0:00:23]} 25. g4 {[%emt 0:00:26]} Rdg8 {[%emt 0:03:46]} 26. Rg1 {[%emt 0:01:36]} Bd8 {[%emt 0:04:33]} 27. Rhh1 {[%emt 0:02:30]} Nd5 {[%emt 0:02:58]} 28. f4 {[%emt 0:01:13]} Bc7 {[%emt 0:01:27]} 29. Rf1 {[%emt 0:00:56]} Ne7 {[%emt 0:03:17]} 30. Rf3 {[%emt 0:03:03]} f6 {[%emt 0:02:03]} 31. Re1 {[%emt 0:00:45]} Re8 {[%emt 0:00:39]} 32. b3 {[%emt 0:00:38]} Bb6 {[%emt 0:00:40]} 33. Rh3 {[%emt 0:00:34]} Rhf8 {[%emt 0:01:23]} 34. f5 {[%emt 0:00:37]} exf5 {[%emt 0:02:40]} 35. gxf5 {[%emt 0:00:13]} Nd5 {[%emt 0:00:45]} 36. Rg1 {[%emt 0:00:43]} Re7 {[%emt 0:00:31]} 37. Rhg3 {[%emt 0:00:34]} Rff7 {[%emt 0:00:07]} 38. R1g2 {[%emt 0:00:31]} Bc7 {[%emt 0:00:20]} 39. Rf3 {[%emt 0:00:19]} Kc8 {[%emt 0:00:52]} 40. Kc2 {[%emt 0:00:41]} Bd6 {[%emt 0:00:37]} 41. Rg1 {[%emt 0:00:33]} Rb7 {[%emt 0:00:36]} 42. Rb1 {[%emt 0:00:28]} Rfe7 {[%emt 0:00:31]} 43. Rg1 {[%emt 0:00:27]} Bh2 {[%emt 0:00:30]} 44. Rg2 {[%emt 0:00:27]} Bd6 {[%emt 0:00:06]} 45. Rg1 {[%emt 0:00:35]} Bh2 {[%emt 0:00:09]} 46. Ra1 {[%emt 0:00:26]} Bd6 {[%emt 0:00:42]} 47. a4 {[%emt 0:00:28]} a6 {[%emt 0:00:52]} 48. axb5 {[%emt 0:00:35]} axb5 {[%emt 0:00:34]} 49. Ra6 {[%emt 0:00:30]} Rb6 {[%emt 0:00:39]} 50. Rxb6 {[%emt 0:00:24]} Nxb6 {[%emt 0:00:02]} 51. c4 {[%emt 0:00:16]} bxc4 {[%emt 0:00:41]} 52. Bxc4 {[%emt 0:00:53]} Nxc4 {[%emt 0:00:45]} 53. bxc4 {[%emt 0:00:04]} Re4 {[%emt 0:00:08]} 54. Kd3 {[%emt 0:00:56]} Rh4 {[%emt 0:00:11]} 55. d5 {[%emt 0:00:32]} cxd5 {[%emt 0:00:56]} 56. cxd5 {[%emt 0:00:07]} Rxh5 {[%emt 0:00:28]} 57. Kc4 {[%emt 0:00:50]} Rh2 {[%emt 0:00:44]} 58. Be3 {[%emt 0:00:34]} Rb2 {[%emt 0:00:33]} 59. Rf1 {[%emt 0:00:25]} h5 {[%emt 0:00:32]} 60. Rg1 {[%emt 0:00:21]} Bf8 {[%emt 0:00:23]} 61. Rh1 {[%emt 0:00:21]} h4 {[%emt 0:00:16]} 62. Kc3 {[%emt 0:00:39]} Rb5 {[%emt 0:00:30]} 63. Rxh4 {[%emt 0:00:35]} Rxd5 {[%emt 0:00:45]} 64. Rh8 {[%emt 0:00:09]} Rd8 {[%emt 0:00:06]} 65. Bb6 {[%emt 0:00:15]} Bb4+ {[%emt 0:00:16]} 66. Kxb4 {[%emt 0:00:45]} Rxh8 {[%emt 0:00:04]} 0-1

[Event "ONJK-A 2019"]
[Site "Borne"]
[Date "2019.08.09"]
[Round "7.11"]
[White "Emans, Job"]
[Black "Van Roon, Sjoerd"]
[Result "0-1"]
[ECO "E98"]
[WhiteElo "1989"]
[BlackElo "2072"]
[Annotator "NA RC"]
[PlyCount "84"]
[EventDate "2019.08.05"]
[EventType "swiss"]
[EventCountry "NED"]
[SourceTitle "playchess.com"]
[Source "ChessBase"]
[SourceQuality "1"]
[TimeControl "5400+30"]

1. d4 {[%emt 0:00:00]} Nf6 {[%emt 0:00:10]} 2. c4 {[%emt 0:00:00]} g6 {[%emt 0:00:09]} 3. Nc3 {[%emt 0:00:03]} Bg7 {[%emt 0:00:06]} 4. e4 {[%emt 0:00:10]} O-O {[%emt 0:00:06]} 5. Nf3 {[%emt 0:00:09]} d6 {[%emt 0:00:10]} 6. Be2 {[%emt 0:00:11]} e5 {[%emt 0:01:09]} 7. O-O {[%emt 0:00:27]} Nc6 {[%emt 0:00:44]} 8. d5 {[%emt 0:00:29]} Ne7 {[%emt 0:00:11]} 9. Ne1 {[%emt 0:00:29]} Ne8 {[%emt 0:01:16]} 10. Nd3 {[%emt 0:00:37]} f5 {[%emt 0:02:12]} 11. f3 {[%emt 0:00:42]} f4 {[%emt 0:00:44]} 12. Bd2 {[%emt 0:00:49]} g5 {[%emt 0:02:16]} 13. c5 {[%emt 0:02:30]} h5 {[%emt 0:01:04]} 14. Rc1 {[%emt 0:05:40]} Rf6 {[%emt 0:05:28]} 15. cxd6 {[%emt 0:03:48]} cxd6 {[%emt 0:00:58]} 16. Nf2 {[%emt 0:00:42]} Rh6 {[%emt 0:06:26]} 17. h3 {[%emt 0:03:31]} Ng6 $14 {[%emt 0:05:42]} 18. Nb5 {[%emt 0:07:57]} Bd7 {[%emt 0:06:48]} 19. Qb3 {[%emt 0:07:38]} Bf6 {[%emt 0:22:12]} 20. Rc2 {[%emt 0:07:25]} Qb8 {[%emt 0:04:45]} 21. a4 {[%emt 0:13:59]} Bd8 {[%emt 0:03:30]} 22. Rfc1 {[%emt 0:05:48]} Bb6 {[%emt 0:09:10]} 23. a5 {[%emt 0:08:12]} Bxf2+ {[%emt 0:00:40]} 24. Kxf2 {[%emt 0:00:07]} g4 {[%emt 0:00:41]} 25. fxg4 {[%emt 0:06:24]} hxg4 {[%emt 0:00:13]} 26. hxg4 {[%emt 0:02:39]} Qd8 {[%emt 0:03:42]} 27. Rg1 {[%emt 0:03:09]} Rh2 {[%emt 0:09:06]} 28. Kf1 {[%emt 0:01:16]} Nf6 {[%emt 0:01:36]} 29. Nxd6 {[%emt 0:03:44]} Bxg4 {[%emt 0:00:42]} 30. Qxb7 {[%emt 0:02:25]} Bxe2+ {[%emt 0:01:22]} 31. Kxe2 {[%emt 0:00:04]} Rh7 {[%emt 0:00:19]} 32. Qxa8 {[%emt 0:07:01]} Qxa8 {[%emt 0:00:09]} 33. Rc8+ {[%emt 0:00:03]} Qxc8 {[%emt 0:00:05]} 34. Nxc8 {[%emt 0:00:05]} Nxe4 {[%emt 0:00:34]} 35. Rc1 {[%emt 0:01:43]} Rh2 {[%emt 0:04:01]} 36. Be1 {[%emt 0:01:42]} Nf6 {[%emt 0:00:37]} 37. d6 {[%emt 0:01:12]} Rxg2+ {[%emt 0:00:44]} 38. Kf1 {[%emt 0:00:03]} f3 {[%emt 0:00:27]} 39. Bf2 {[%emt 0:01:33]} Nf4 {[%emt 0:02:46]} 40. Rd1 {[%emt 0:03:54]} Ne4 {[%emt 0:00:37]} 41. Bxa7 {[%emt 0:01:18]} Ng3+ {[%emt 0:00:10]} 42. Ke1 {[%emt 0:00:04]} Re2# 0-1

[Event "ONJK-A 2019"]
[Site "Borne"]
[Date "2019.08.09"]
[Round "8.2"]
[White "Baselmans, Sam"]
[Black "Baselmans, Luuk"]
[Result "0-1"]
[ECO "C11"]
[WhiteElo "2064"]
[BlackElo "2212"]
[Annotator "NA"]
[PlyCount "104"]
[EventDate "2019.08.05"]
[EventType "swiss"]
[EventCountry "NED"]
[SourceTitle "playchess.com"]
[Source "ChessBase"]
[SourceQuality "1"]
[TimeControl "5400+30"]

1. e4 {[%emt 0:00:00]} e6 {[%emt 0:00:00]} 2. d4 {[%emt 0:00:00]} d5 {[%emt 0:00:00]} 3. Nc3 {[%emt 0:00:00]} Nf6 {[%emt 0:00:00]} 4. e5 {[%emt 0:00:00]} Nfd7 {[%emt 0:00:06]} 5. f4 {[%emt 0:00:00]} c5 {[%emt 0:00:15]} 6. Nf3 {[%emt 0:00:00]} Nc6 {[%emt 0:00:07]} 7. Be3 {[%emt 0:00:00]} cxd4 {[%emt 0:00:42]} 8. Nxd4 {[%emt 0:00:06]} Bc5 {[%emt 0:00:06]} 9. Qd2 {[%emt 0:01:57]} a6 {[%emt 0:00:19]} 10. Nd1 {[%emt 0:00:23]} Nxd4 {[%emt 0:08:47]} 11. Bxd4 {[%emt 0:00:06]} Bxd4 {[%emt 0:00:42]} 12. Qxd4 {[%emt 0:00:08]} f6 {[%emt 0:01:37]} 13. exf6 {[%emt 0:01:08]} Qxf6 {[%emt 0:00:19]} 14. Qxf6 {[%emt 0:00:56]} gxf6 {[%emt 0:00:57]} 15. g3 {[%emt 0:03:17]} b5 {[%emt 0:04:25]} 16. a4 {[%emt 0:03:22]} b4 {[%emt 0:03:54]} 17. Bg2 {[%emt 0:04:07]} Bb7 {[%emt 0:08:28]} 18. O-O {[%emt 0:05:24]} Nc5 {[%emt 0:00:53]} 19. Re1 {[%emt 0:04:05]} a5 {[%emt 0:07:13]} 20. Ne3 {[%emt 0:03:49]} O-O-O {[%emt 0:04:03]} 21. Rad1 {[%emt 0:05:30]} f5 {[%emt 0:09:19]} 22. Rd4 {[%emt 0:04:24]} h5 {[%emt 0:01:30]} 23. c3 {[%emt 0:02:10]} bxc3 {[%emt 0:02:50]} 24. Rc1 {[%emt 0:01:38]} Kb8 {[%emt 0:02:08]} 25. Rxc3 {[%emt 0:02:10]} Rc8 {[%emt 0:00:54]} 26. b4 {[%emt 0:05:39]} Nxa4 {[%emt 0:03:25]} 27. Rxc8+ {[%emt 0:01:08]} Rxc8 {[%emt 0:00:15]} 28. bxa5 {[%emt 0:00:06]} Nc3 {[%emt 0:01:49]} 29. Rb4 {[%emt 0:01:53]} Ka7 {[%emt 0:01:25]} 30. Bf3 {[%emt 0:01:36]} h4 {[%emt 0:00:34]} 31. g4 {[%emt 0:00:49]} fxg4 {[%emt 0:00:19]} 32. Nxg4 {[%emt 0:00:35]} Rc5 {[%emt 0:02:46]} 33. Rb6 {[%emt 0:02:49]} Rc4 {[%emt 0:01:23]} 34. Rxe6 {[%emt 0:00:38]} Rxf4 {[%emt 0:00:07]} 35. Kg2 {[%emt 0:03:55]} Ne4 {[%emt 0:02:47]} 36. a6 {[%emt 0:11:49]} h3+ {[%emt 0:01:07]} 37. Kg1 {[%emt 0:01:02]} Ng5 {[%emt 0:00:12]} 38. Rf6 {[%emt 0:00:49]} Nxf3+ {[%emt 0:00:54]} 39. Kf2 {[%emt 0:00:06]} Rxg4 {[%emt 0:00:12]} 40. Kxf3 {[%emt 0:01:01]} Bc8 {[%emt 0:00:12]} 41. Rd6 {[%emt 0:01:54]} Rg2 {[%emt 0:00:31]} 42. Rxd5 {[%emt 0:00:22]} Bxa6 {[%emt 0:00:49]} 43. Rd7+ {[%emt 0:00:28]} Bb7+ {[%emt 0:00:08]} 44. Kf4 {[%emt 0:00:08]} Kb8 {[%emt 0:00:47]} 45. Rh7 {[%emt 0:00:24]} Bc8 {[%emt 0:00:08]} 46. Rh8 {[%emt 0:00:12]} Rxh2 {[%emt 0:00:10]} 47. Kg3 {[%emt 0:00:05]} Rg2+ {[%emt 0:00:06]} 48. Kf3 {[%emt 0:00:04]} Kc7 {[%emt 0:00:38]} 49. Rh7+ {[%emt 0:00:07]} Kd6 {[%emt 0:00:06]} 50. Rh6+ {[%emt 0:00:18]} Ke5 {[%emt 0:00:05]} 51. Rh4 {[%emt 0:00:15]} Bb7+ {[%emt 0:00:10]} 52. Ke3 {[%emt 0:00:06]} h2 {[%emt 0:00:09]} 0-1

[Event "ONJK-A 2019"]
[Site "Borne"]
[Date "2019.08.09"]
[Round "8.3"]
[White "Noordenbos, Daan"]
[Black "Boudry, William"]
[Result "1/2-1/2"]
[ECO "B41"]
[WhiteElo "2042"]
[BlackElo "2033"]
[Annotator "NA"]
[PlyCount "166"]
[EventDate "2019.08.05"]
[EventType "swiss"]
[EventCountry "NED"]
[SourceTitle "playchess.com"]
[Source "ChessBase"]
[SourceQuality "1"]
[TimeControl "5400+30"]

1. e4 {[%emt 0:00:00]} c5 {[%emt 0:00:00]} 2. Nf3 {[%emt 0:00:00]} e6 {[%emt 0:00:00]} 3. d4 {[%emt 0:00:00]} cxd4 {[%emt 0:00:11]} 4. Nxd4 {[%emt 0:00:00]} a6 {[%emt 0:00:01]} 5. c4 {[%emt 0:00:00]} Qc7 {[%emt 0:00:27]} 6. Nc3 {[%emt 0:02:49]} Nf6 {[%emt 0:00:56]} 7. a3 {[%emt 0:02:25]} Nc6 {[%emt 0:00:26]} 8. Be3 {[%emt 0:02:23]} Nxd4 {[%emt 0:02:32]} 9. Bxd4 {[%emt 0:01:22]} Bc5 {[%emt 0:00:26]} 10. e5 {[%emt 0:06:09]} Ng8 {[%emt 0:05:41]} 11. Ne4 {[%emt 0:01:15]} Bxd4 {[%emt 0:00:05]} 12. Qxd4 {[%emt 0:00:52]} Ne7 {[%emt 0:01:10]} 13. Nd6+ {[%emt 0:00:11]} Kf8 {[%emt 0:00:09]} 14. Qf4 {[%emt 0:13:27]} Nf5 {[%emt 0:00:48]} 15. Nxf5 {[%emt 0:02:35]} exf5 {[%emt 0:00:04]} 16. Qxf5 {[%emt 0:04:12]} d6 {[%emt 0:00:37]} 17. exd6 {[%emt 0:00:14]} Qxd6 {[%emt 0:00:24]} 18. Qd3 {[%emt 0:01:35]} Qe5+ {[%emt 0:01:35]} 19. Qe2 {[%emt 0:01:37]} Qc7 {[%emt 0:03:46]} 20. Qc2 {[%emt 0:02:34]} Bg4 {[%emt 0:03:53]} 21. f3 {[%emt 0:02:46]} Qe5+ {[%emt 0:04:34]} 22. Be2 {[%emt 0:02:14]} Bf5 {[%emt 0:00:05]} 23. Qd2 {[%emt 0:00:15]} Re8 {[%emt 0:00:21]} 24. Rd1 {[%emt 0:00:48]} Kg8 {[%emt 0:00:10]} 25. O-O {[%emt 0:02:29]} h5 {[%emt 0:01:00]} 26. Rf2 {[%emt 0:00:24]} Rh6 {[%emt 0:01:42]} 27. Bf1 {[%emt 0:02:44]} Rhe6 {[%emt 0:02:54]} 28. Qd4 {[%emt 0:00:56]} Qxd4 {[%emt 0:00:48]} 29. Rxd4 {[%emt 0:00:02]} Re1 {[%emt 0:00:07]} 30. Rfd2 {[%emt 0:01:35]} Kh7 {[%emt 0:01:27]} 31. Rd1 {[%emt 0:00:58]} R8e2 {[%emt 0:01:28]} 32. Rxe1 {[%emt 0:07:52]} Rxe1 {[%emt 0:00:06]} 33. Kf2 {[%emt 0:00:26]} Rc1 {[%emt 0:00:33]} 34. Rd2 {[%emt 0:00:05]} Be6 {[%emt 0:00:46]} 35. Bd3+ {[%emt 0:00:14]} g6 {[%emt 0:00:05]} 36. Be4 {[%emt 0:00:08]} Rxc4 {[%emt 0:01:45]} 37. Bxb7 {[%emt 0:00:08]} a5 {[%emt 0:00:08]} 38. Ba6 {[%emt 0:00:47]} Rc1 {[%emt 0:00:36]} 39. Bb5 {[%emt 0:01:04]} Kg7 {[%emt 0:00:52]} 40. Ke3 {[%emt 0:00:48]} h4 {[%emt 0:00:35]} 41. h3 {[%emt 0:00:58]} Rc5 {[%emt 0:00:36]} 42. Bd3 {[%emt 0:00:39]} Re5+ {[%emt 0:00:20]} 43. Kf2 {[%emt 0:00:49]} Rd5 {[%emt 0:01:03]} 44. Ke1 {[%emt 0:00:35]} Re5+ {[%emt 0:01:58]} 45. Be2 {[%emt 0:01:25]} Kf6 {[%emt 0:00:36]} 46. Kf2 {[%emt 0:01:03]} Ke7 {[%emt 0:00:56]} 47. b4 {[%emt 0:00:46]} axb4 {[%emt 0:00:28]} 48. axb4 {[%emt 0:00:03]} Bd7 {[%emt 0:00:12]} 49. Rd4 {[%emt 0:01:49]} g5 {[%emt 0:02:49]} 50. f4 {[%emt 0:02:49]} gxf4 {[%emt 0:00:32]} 51. Rxf4 {[%emt 0:00:08]} Bc6 {[%emt 0:00:28]} 52. Rxh4 {[%emt 0:01:11]} Bxg2 {[%emt 0:00:35]} 53. Bf3 {[%emt 0:01:48]} Bxf3 {[%emt 0:00:57]} 54. Kxf3 {[%emt 0:00:09]} Kf6 {[%emt 0:00:20]} 55. Re4 {[%emt 0:00:37]} Rb5 {[%emt 0:00:10]} 56. Kf4 {[%emt 0:01:41]} Rh5 {[%emt 0:00:38]} 57. Kg3 {[%emt 0:00:16]} Rb5 {[%emt 0:00:21]} 58. Rc4 {[%emt 0:01:00]} Rd5 {[%emt 0:00:48]} 59. Rc3 {[%emt 0:00:45]} Rb5 {[%emt 0:00:13]} 60. Rb3 {[%emt 0:00:19]} Kg5 {[%emt 0:00:07]} 61. Kf3 {[%emt 0:00:53]} Kf5 {[%emt 0:00:55]} 62. Ke3 {[%emt 0:00:38]} Ke5 {[%emt 0:00:17]} 63. Kd3 {[%emt 0:00:11]} Kd5 {[%emt 0:00:54]} 64. Kc3 {[%emt 0:00:57]} f6 {[%emt 0:00:39]} 65. Rb1 {[%emt 0:00:08]} Kc6 {[%emt 0:01:45]} 66. Kc4 {[%emt 0:03:27]} Rh5 {[%emt 0:00:21]} 67. b5+ {[%emt 0:00:10]} Kb6 {[%emt 0:00:06]} 68. Rb3 {[%emt 0:00:18]} Rc5+ {[%emt 0:00:51]} 69. Kd4 {[%emt 0:00:16]} Re5 {[%emt 0:00:04]} 70. Rf3 {[%emt 0:04:41]} Kxb5 {[%emt 0:00:35]} 71. Rxf6 {[%emt 0:00:21]} Rh5 {[%emt 0:00:07]} 72. Rf3 {[%emt 0:00:29]} Kc6 {[%emt 0:00:03]} 73. Ke4 {[%emt 0:02:28]} Kd6 {[%emt 0:00:04]} 74. Kf4 {[%emt 0:00:15]} Ke7 {[%emt 0:00:26]} 75. Kg4 {[%emt 0:00:08]} Rh7 {[%emt 0:00:10]} 76. h4 {[%emt 0:00:26]} Rf7 {[%emt 0:00:09]} 77. Ra3 {[%emt 0:00:10]} Kf6 {[%emt 0:00:17]} 78. Ra6+ {[%emt 0:00:09]} Kg7 {[%emt 0:00:06]} 79. Kg5 {[%emt 0:00:04]} Rb7 {[%emt 0:00:12]} 80. Ra5 {[%emt 0:00:15]} Rc7 {[%emt 0:00:16]} 81. Kh5 {[%emt 0:00:28]} Kh7 {[%emt 0:02:28]} 82. Kg5 {[%emt 0:00:04]} Kg7 {[%emt 0:00:05]} 83. Kh5 {[%emt 0:00:03]} Kh7 {[%emt 0:02:21]} 1/2-1/2

[Event "ONJK-A 2019"]
[Site "Borne"]
[Date "2019.08.09"]
[Round "8.4"]
[White "Hilwerda, Jonas"]
[Black "Hempler, Poul"]
[Result "1-0"]
[ECO "B12"]
[WhiteElo "2275"]
[BlackElo "1856"]
[Annotator "NA"]
[PlyCount "47"]
[EventDate "2019.08.05"]
[EventType "swiss"]
[EventCountry "NED"]
[SourceTitle "playchess.com"]
[Source "ChessBase"]
[SourceQuality "1"]
[TimeControl "5400+30"]

1. e4 {[%emt 0:00:00]} c6 {[%emt 0:00:00]} 2. d4 {[%emt 0:00:00]} d5 {[%emt 0:00:00]} 3. e5 {[%emt 0:00:20]} Bf5 {[%emt 0:00:00]} 4. Ne2 {[%emt 0:01:06]} e6 {[%emt 0:00:37]} 5. Ng3 {[%emt 0:00:35]} Bg6 {[%emt 0:00:13]} 6. h4 {[%emt 0:00:31]} h6 {[%emt 0:00:13]} 7. h5 {[%emt 0:00:34]} Bh7 {[%emt 0:00:07]} 8. Bd3 {[%emt 0:00:51]} Bxd3 {[%emt 0:00:19]} 9. cxd3 {[%emt 0:01:34]} Qb6 {[%emt 0:02:27]} 10. Be3 {[%emt 0:02:25]} Qxb2 {[%emt 0:02:09]} 11. Nd2 {[%emt 0:00:22]} Qb6 {[%emt 0:04:47]} 12. O-O {[%emt 0:03:41]} Nd7 {[%emt 0:02:04]} 13. Qg4 {[%emt 0:07:23]} Ne7 {[%emt 0:02:20]} 14. f4 {[%emt 0:00:56]} O-O-O {[%emt 0:06:06]} 15. Rab1 {[%emt 0:03:10]} Qa6 {[%emt 0:00:46]} 16. f5 {[%emt 0:00:58]} Qxd3 {[%emt 0:02:18]} 17. Rb3 {[%emt 0:01:04]} Qc2 {[%emt 0:06:41]} 18. fxe6 {[%emt 0:00:53]} fxe6 {[%emt 0:00:10]} 19. Qxe6 {[%emt 0:00:57]} Kb8 {[%emt 0:05:10]} 20. Qd6+ {[%emt 0:05:21]} Kc8 {[%emt 0:00:34]} 21. Qa3 {[%emt 0:03:14]} Nf5 {[%emt 0:05:01]} 22. Qxa7 {[%emt 0:00:37]} Qxb3 {[%emt 0:00:26]} 23. Nxb3 {[%emt 0:00:15]} Nxg3 {[%emt 0:01:09]} 24. Na5 {[%emt 0:00:22]} 1-0

[Event "ONJK-A 2019"]
[Site "Borne"]
[Date "2019.08.09"]
[Round "8.5"]
[White "Van Malder, Dries"]
[Black "Shakhverdian, William"]
[Result "1-0"]
[ECO "C47"]
[WhiteElo "2178"]
[BlackElo "2001"]
[Annotator "NA"]
[PlyCount "93"]
[EventDate "2019.08.05"]
[EventType "swiss"]
[EventCountry "NED"]
[SourceTitle "playchess.com"]
[Source "ChessBase"]
[SourceQuality "1"]
[TimeControl "5400+30"]

1. e4 {[%emt 0:00:00]} e5 {[%emt 0:00:00]} 2. Nf3 {[%emt 0:00:00]} Nc6 {[%emt 0:00:00]} 3. Nc3 {[%emt 0:00:00]} Nf6 {[%emt 0:00:00]} 4. d4 {[%emt 0:00:00]} exd4 {[%emt 0:00:00]} 5. Nxd4 {[%emt 0:00:02]} Bb4 {[%emt 0:00:16]} 6. Nxc6 {[%emt 0:00:07]} bxc6 {[%emt 0:00:38]} 7. Bd3 {[%emt 0:00:07]} d5 {[%emt 0:00:15]} 8. exd5 {[%emt 0:00:06]} cxd5 {[%emt 0:00:07]} 9. O-O {[%emt 0:00:08]} O-O {[%emt 0:00:10]} 10. h3 {[%emt 0:01:19]} h6 {[%emt 0:05:18]} 11. Qf3 {[%emt 0:02:46]} c6 {[%emt 0:02:18]} 12. Bf4 {[%emt 0:00:44]} Bd6 {[%emt 0:00:49]} 13. Rfd1 {[%emt 0:06:20]} Be6 {[%emt 0:02:15]} 14. Ne2 {[%emt 0:05:54]} Rb8 {[%emt 0:06:46]} 15. b3 {[%emt 0:01:24]} Re8 {[%emt 0:07:25]} 16. c4 {[%emt 0:11:32]} c5 {[%emt 0:02:51]} 17. Bxd6 {[%emt 0:06:45]} Qxd6 {[%emt 0:00:06]} 18. cxd5 {[%emt 0:00:13]} Bxd5 {[%emt 0:00:30]} 19. Qg3 {[%emt 0:03:45]} Qe7 {[%emt 0:07:53]} 20. Nf4 {[%emt 0:03:09]} Ba8 {[%emt 0:00:36]} 21. Rac1 {[%emt 0:08:25]} Kh8 {[%emt 0:00:25]} 22. h4 {[%emt 0:08:10]} Rb4 {[%emt 0:06:42]} 23. Bc4 {[%emt 0:06:42]} Bc6 {[%emt 0:01:34]} 24. f3 {[%emt 0:04:05]} Rbb8 {[%emt 0:03:46]} 25. Re1 {[%emt 0:02:01]} Qd7 {[%emt 0:00:54]} 26. Nd3 {[%emt 0:03:48]} Bb5 {[%emt 0:07:10]} 27. Bxb5 {[%emt 0:06:25]} Rxb5 {[%emt 0:01:17]} 28. Rxe8+ {[%emt 0:01:37]} Qxe8 {[%emt 0:00:35]} 29. Qf2 {[%emt 0:00:46]} Nd7 {[%emt 0:00:43]} 30. Re1 {[%emt 0:01:47]} Qf8 {[%emt 0:02:14]} 31. Qe3 {[%emt 0:02:36]} Rb6 {[%emt 0:03:24]} 32. Qe8 {[%emt 0:02:37]} Qxe8 {[%emt 0:00:57]} 33. Rxe8+ {[%emt 0:00:06]} Kh7 {[%emt 0:00:03]} 34. Rd8 {[%emt 0:00:26]} Rb7 {[%emt 0:00:38]} 35. Rc8 {[%emt 0:00:24]} Kg6 {[%emt 0:00:27]} 36. Nxc5 {[%emt 0:00:34]} Nxc5 {[%emt 0:00:05]} 37. Rxc5 {[%emt 0:00:07]} Rd7 {[%emt 0:00:13]} 38. Rc2 {[%emt 0:00:28]} Kh5 {[%emt 0:02:57]} 39. g3 {[%emt 0:00:52]} g5 {[%emt 0:00:11]} 40. hxg5 {[%emt 0:00:37]} hxg5 {[%emt 0:00:31]} 41. Kf2 {[%emt 0:07:26]} g4 {[%emt 0:01:09]} 42. f4 {[%emt 0:04:27]} Kg6 {[%emt 0:00:31]} 43. Ke3 {[%emt 0:00:48]} Kf5 {[%emt 0:01:32]} 44. Rc5+ {[%emt 0:00:23]} Ke6 {[%emt 0:00:08]} 45. Ke4 {[%emt 0:01:25]} Rb7 {[%emt 0:01:08]} 46. Rc6+ {[%emt 0:00:31]} Kd7 {[%emt 0:00:12]} 47. Ra6 {[%emt 0:00:14]} 1-0